[Event "FIDE Womens Grand Swiss 2023"]
[Site "Douglas/Isle of Man"]
[Date "2023.10.25"]
[Round "1.1"]
[White "Matnadze Bujiashvili, Ann"]
[Black "Goryachkina, Aleksandra"]
[Result "1/2-1/2"]
[ECO "D23"]
[WhiteElo "2400"]
[BlackElo "2558"]
[Annotator "TA"]
[PlyCount "131"]
[EventDate "2023.10.04"]
[EventType "swiss"]
[EventCountry "GBR"]
[SourceTitle "playchess.com"]
[Source "ChessBase"]
[SourceQuality "1"]
[TimeControl "40/6000+30:20/3000+30:900+30"]

{[%evp 12,131,10,-18,-14,-23,-18,-10,-2,-22,-18,-29,-29,-25,-16,-19,-21,-24,-14,-23,-7,-8,0,0,0,0,0,0,0,-4,0,-19,-11,-26,-18,-30,0,0,0,0,0,0,4,0,0,-1,-1,-1,-1,-1,-2,-10,0,-29,0,0,0,0,0,0,0,0,8,-26,0,0,0,-33,0,-39,-18,-220,-229,-180,-156,-157,-131,-119,-16,-16,-12,-75,-56,-373,-149,-601,-596,-559,-524,-531,430,430,459,437,373,88,304,20,109,0,0,0,0,0,0,0,0,0,13,13,13,13,13,13,18,18,18,18,18,18,18,13]} 1. d4 {[%emt 0:10:06]} d5 {[%emt 0:10:20]} 2. Nf3 {[%emt 0:00:20]} Nf6 {[%emt 0:00:22]} 3. c4 {[%emt 0:00:32]} c6 {[%emt 0:00:36]} 4. Qb3 {[%emt 0:00:27]} dxc4 {[%emt 0:00:48]} 5. Qxc4 {[%emt 0:00:06]} Bf5 {[%emt 0:00:35]} 6. Nc3 {[%emt 0:01:04]} e6 {[%emt 0:04:00]} 7. Bg5 {[%emt 0:02:32]} Qb6 {[%emt 0:07:11] D23: Queen's Gambit Accepted: 3 Nf3 Nf6 sidelines.} 8. Na4 {[%emt 0:14:15]} Qa5+ {[%emt 0:05:04]} 9. Bd2 {[%emt 0:01:00] [#]} Qd5 $146 {[%emt 0:05:42]} ({Predecessor:} 9... Qc7 10. Nc5 Nbd7 11. Nxd7 Nxd7 12. g3 Be7 13. Bg2 Be4 14. O-O O-O 15. Bb4 Nb6 {0-1 Cohen,H (2035)-Dorobanov,S (2276) USA-chT Amateur East 2013 (5)}) 10. Qxd5 {[%emt 0:06:07]} exd5 {[%emt 0:03:08]} 11. Rc1 {[%emt 0:02:19]} Nbd7 {[%emt 0:03:07]} 12. e3 {[%emt 0:02:33]} Be7 {[%emt 0:01:26]} 13. Be2 {[%emt 0:05:48]} Ne4 {[%emt 0:02:04]} 14. Ba5 {[%emt 0:05:34]} Nb6 {[%emt 0:04:51]} 15. Nc3 {[%emt 0:03:37]} Nd6 {[%emt 0:04:39]} 16. Bb4 {[%emt 0:01:50]} a5 {[%emt 0:01:21]} 17. Bc5 {[%emt 0:02:10]} Nd7 {[%emt 0:02:13]} 18. Ba3 {[%emt 0:03:55]} b5 {[%emt 0:05:28] Hoping for ...b4.} 19. Bxd6 {[%emt 0:00:22]} Bxd6 {[%emt 0:00:02]} 20. O-O {[%emt 0:04:28]} O-O {[%emt 0:00:55]} 21. a4 {[%emt 0:02:53]} b4 {[%emt 0:02:37]} 22. Nb1 {[%emt 0:01:20]} Rfc8 {[%emt 0:07:43]} 23. Nbd2 {[%emt 0:00:37]} c5 {[%emt 0:06:16]} 24. Bb5 {[%emt 0:04:07]} Rc7 {[%emt 0:08:14]} 25. dxc5 {[%emt 0:02:51]} Nxc5 {[%emt 0:00:06]} 26. Nd4 {[%emt 0:00:30]} Bg6 {[%emt 0:01:38]} 27. f4 {[%emt 0:03:27]} Rac8 {[%emt 0:04:11]} 28. f5 {[%emt 0:02:02]} Bh5 {[%emt 0:00:11]} 29. h3 {[%emt 0:04:10]} f6 {[%emt 0:03:40]} 30. g4 {[%emt 0:03:04]} Bf7 {[%emt 0:00:07]} 31. Rfd1 {[%emt 0:02:34]} h5 {[%emt 0:01:03]} 32. Kg2 {[%emt 0:02:31]} Kf8 {[%emt 0:02:41]} (32... g6 {simplifies} 33. Rf1 g5 34. N2b3 Nxb3 35. Rxc7 Bxc7 36. Nxb3 Bb6) 33. N2f3 {[%emt 0:08:32]} Ke7 {[%emt 0:03:36]} 34. g5 {[%emt 0:01:50]} fxg5 $1 {[%emt 0:02:30]} 35. Nxg5 {[%emt 0:01:00] Excellent horsemanship.} Bg8 $1 {[%emt 0:01:56]} 36. h4 {[%emt 0:05:42][%cal Of5f6]} Kf6 {[%emt 0:00:56]} 37. Rf1 {[%emt 0:01:40]} Ne4 {[%emt 0:04:23]} (37... Be5 $5 {[%cal Re5d4]}) 38. Rxc7 {[%emt 0:00:43]} Rxc7 {[%emt 0:00:01]} 39. Bd3 {[%emt 0:00:26]} (39. Nge6 $5 {[%cal Re6c7]} Rc8 40. Bd7 $11) 39... Nc5 {[%emt 0:01:43]} 40. Bb5 {[%emt 0:00:41]} Be5 {[%emt 0:01:51]} 41. Be8 $2 {[%emt 0:34:08]} (41. Ngf3 $11 {and White is okay.}) 41... Bxd4 $19 {[%emt 0:25:36]} 42. exd4 {[%emt 0:00:02]} Ne4 {[%emt 0:03:07]} 43. Nxe4+ {[%emt 0:02:02]} dxe4 {[%emt 0:00:02]} 44. Bxh5 $17 {[%emt 0:00:13][%mdl 4096] Endgame KRB-KRB} Bd5 {[%emt 0:04:18]} (44... Rc2+ $1 $17 45. Kg3 e3) 45. Kg3 $11 {[%emt 0:01:25]} Rc2 {[%emt 0:02:29]} 46. Kf4 {[%emt 0:00:30]} (46. Rg1 $11) 46... Rh2 $1 $17 {[%emt 0:04:45]} (46... Rxb2 47. Rg1 Rf2+ 48. Ke3 $11) 47. Bg4 $2 {[%emt 0:00:55][%mdl 8192]} (47. Rg1 $1 $15 Rxh4+ 48. Bg4) 47... b3 $2 {[%emt 0:02:53]} (47... Rxh4 48. Rg1 $15) (47... Rxb2 $19 {has better winning chances.} 48. Rc1 b3) 48. Rg1 $2 {[%emt 0:05:42][%mdl 8192]} (48. Rb1 $17) 48... Rxb2 $19 {[%emt 0:03:07]} 49. Bh5 {[%emt 0:00:07]} Rf2+ {[%emt 0:00:39]} 50. Ke3 {[%emt 0:00:12]} Rxf5 {[%emt 0:00:19][%mdl 8192]} (50... Rc2 $19 51. Rg6+ Ke7) 51. Bg4 $18 {[%emt 0:01:05]} Rf3+ {[%emt 0:05:29]} 52. Bxf3 {[%emt 0:00:02]} exf3 {[%emt 0:00:05] [#] KR-KB} 53. h5 $2 {[%emt 0:04:29]} (53. Rc1 $1 $18 {and the rest is easy.}) 53... Bf7 $2 {[%emt 0:01:14]} (53... Kf5 $16 {was necessary.}) 54. Rc1 $2 {[%emt 0:02:51]} ({Stronger than} 54. Kxf3 Bxh5+ 55. Ke3 Bg6 $11) (54. Rb1 $18) 54... Be8 $11 {[%emt 0:01:45] [#]} 55. Rc8 {[%emt 0:01:26]} (55. Rc7 $1 $16) 55... Bxa4 {[%emt 0:00:23] aiming for ...Ke6. The position is equal.} 56. Rb8 $1 {[%emt 0:00:23][%cal Ob8b7]} (56. Kxf3 $2 {too greedy.} Bb5 57. Rf8+ (57. Rb8 $2 Bc4 $19) 57... Ke6 $19) 56... Ke6 {[%emt 0:00:40]} 57. Kxf3 {[%emt 0:00:26]} Kd5 {[%emt 0:01:38]} 58. Ke3 {[%emt 0:00:14] Kd3 is the strong threat.} Kc4 {[%emt 0:00:10] Threatens to win with ...Bb5.} 59. Kd2 {[%emt 0:01:46]} Kxd4 {[%emt 0:00:26]} 60. Rb7 {[%emt 0:00:36]} Be8 {[%emt 0:01:02]} 61. Rxb3 {[%emt 0:15:18]} (61. Rxg7 {is more complex.} Bxh5 62. Rg5 b2 63. Kc2) 61... Bxh5 {[%emt 0:15:32]} 62. Rb5 {[%emt 0:00:41]} Bf7 {[%emt 0:00:33]} 63. Rxa5 {[%emt 0:00:06]} g6 {[%emt 0:00:07]} 64. Ra7 {[%emt 0:00:18]} Be6 {[%emt 0:00:06]} 65. Rg7 {[%emt 0:00:15]} Bf5 {[%emt 0:00:01]} 66. Ke2 {[%emt 0:00:07] Never resign too early!   Weighted Error Value: White=0.45/Black=0.28 (precise)} 1/2-1/2

[Event "FIDE Womens Grand Swiss 2023"]
[Site "Douglas/Isle of Man"]
[Date "2023.10.25"]
[Round "1.2"]
[White "Kosteniuk, Alexandra"]
[Black "Narva, Mai"]
[Result "1/2-1/2"]
[ECO "B40"]
[WhiteElo "2523"]
[BlackElo "2399"]
[Annotator "RC"]
[PlyCount "79"]
[EventDate "2023.10.04"]
[EventType "swiss"]
[EventCountry "GBR"]
[SourceTitle "playchess.com"]
[Source "ChessBase"]
[SourceQuality "1"]
[TimeControl "40/6000+30:20/3000+30:900+30"]

1. e4 {[%emt 0:10:05]} c5 {[%emt 0:10:11]} 2. Nf3 {[%emt 0:00:05]} e6 {[%emt 0:00:15]} 3. c3 {[%emt 0:00:12]} d5 {[%emt 0:00:22]} 4. e5 {[%emt 0:00:06]} d4 {[%emt 0:00:17]} 5. d3 {[%emt 0:00:12]} Nc6 {[%emt 0:00:46]} 6. g3 {[%emt 0:00:20]} dxc3 {[%emt 0:00:35]} 7. bxc3 {[%emt 0:00:17]} Qd5 {[%emt 0:01:02]} 8. Bg2 {[%emt 0:03:24]} Nxe5 {[%emt 0:09:54]} 9. O-O {[%emt 0:00:46]} Nxf3+ {[%emt 0:14:47]} 10. Bxf3 {[%emt 0:00:09]} Qd7 {[%emt 0:00:25]} 11. Na3 {[%emt 0:02:28]} Ne7 {[%emt 0:14:58]} 12. Nc4 {[%emt 0:02:59]} Nc6 {[%emt 0:01:06]} 13. Bf4 {[%emt 0:04:20]} Be7 {[%emt 0:04:06]} 14. Qa4 {[%emt 0:11:22]} g5 {[%emt 0:17:41]} 15. Be3 {[%emt 0:07:00]} Ne5 {[%emt 0:03:06]} 16. Qxd7+ {[%emt 0:00:15]} Nxd7 {[%emt 0:00:06]} 17. Rab1 {[%emt 0:03:56]} Rb8 {[%emt 0:00:52]} 18. Na5 {[%emt 0:04:03]} Nb6 {[%emt 0:02:41]} 19. d4 {[%emt 0:05:44]} cxd4 {[%emt 0:02:08]} 20. Bxd4 {[%emt 0:01:31]} O-O {[%emt 0:03:39]} 21. c4 {[%emt 0:02:49]} Nd7 {[%emt 0:07:16]} 22. Rfd1 {[%emt 0:09:32]} Bc5 {[%emt 0:04:35]} 23. Bxc5 {[%emt 0:16:57]} Nxc5 {[%emt 0:00:10]} 24. Nc6 {[%emt 0:00:15]} Ra8 {[%emt 0:00:34]} 25. Rb5 {[%emt 0:01:50]} g4 {[%emt 0:04:59]} 26. Rxc5 {[%emt 0:12:48]} gxf3 {[%emt 0:02:07]} 27. Rg5+ {[%emt 0:00:05]} Kh8 {[%emt 0:00:04]} 28. Ne5 {[%emt 0:00:11]} h6 {[%emt 0:00:41]} 29. Rg4 {[%emt 0:00:10]} Kh7 {[%emt 0:01:37]} 30. Rd3 {[%emt 0:02:24]} b6 {[%emt 0:02:57]} 31. Rxf3 {[%emt 0:04:27]} f6 {[%emt 0:00:35]} 32. Rgf4 {[%emt 0:03:13]} Kg7 {[%emt 0:01:23]} 33. Rg4+ {[%emt 0:00:20]} Kh7 {[%emt 0:00:05]} 34. Rgf4 {[%emt 0:02:12]} Kg7 {[%emt 0:00:17]} 35. Rd4 {[%emt 0:00:47]} h5 {[%emt 0:00:37]} 36. Nd7 {[%emt 0:00:38]} Rf7 {[%emt 0:00:46]} 37. Rfd3 {[%emt 0:00:06]} e5 {[%emt 0:00:42]} 38. Rd6 {[%emt 0:00:09]} Bxd7 {[%emt 0:00:35]} 39. Rxd7 {[%emt 0:00:05]} Rc8 {[%emt 0:00:26]} 40. Rxf7+ {[%emt 0:01:00]} 1/2-1/2

[Event "FIDE Womens Grand Swiss 2023"]
[Site "Douglas/Isle of Man"]
[Date "2023.10.25"]
[Round "1.3"]
[White "Hoang, Thanh Trang"]
[Black "Muzychuk, Mariya"]
[Result "1/2-1/2"]
[ECO "E04"]
[WhiteElo "2398"]
[BlackElo "2519"]
[Annotator "RC"]
[PlyCount "81"]
[EventDate "2023.10.04"]
[EventType "swiss"]
[EventCountry "GBR"]
[SourceTitle "playchess.com"]
[Source "ChessBase"]
[SourceQuality "1"]
[TimeControl "40/6000+30:20/3000+30:900+30"]

1. d4 {[%emt 0:10:10]} Nf6 {[%emt 0:10:11]} 2. Nf3 {[%emt 0:00:29]} d5 {[%emt 0:00:20]} 3. c4 {[%emt 0:00:47]} e6 {[%emt 0:00:16]} 4. g3 {[%emt 0:00:40]} Bb4+ {[%emt 0:00:24]} 5. Bd2 {[%emt 0:00:32]} a5 {[%emt 0:00:13]} 6. Bg2 {[%emt 0:01:48]} dxc4 {[%emt 0:00:20]} 7. Qc2 {[%emt 0:01:16]} Bxd2+ {[%emt 0:00:23]} 8. Qxd2 {[%emt 0:01:18]} c6 {[%emt 0:00:11]} 9. a4 {[%emt 0:02:28]} b5 {[%emt 0:03:39]} 10. axb5 {[%emt 0:02:06]} cxb5 {[%emt 0:03:34]} 11. Qg5 {[%emt 0:00:52]} O-O {[%emt 0:01:17]} 12. Qxb5 {[%emt 0:01:03]} Ba6 {[%emt 0:02:51]} 13. Qa4 {[%emt 0:05:53]} Qb6 {[%emt 0:04:36]} 14. O-O {[%emt 0:05:41]} Qxb2 {[%emt 0:16:48]} 15. Nbd2 {[%emt 0:03:41]} Bb5 {[%emt 0:08:29]} 16. Nxc4 {[%emt 0:01:24]} Bxa4 {[%emt 0:00:23]} 17. Nxb2 {[%emt 0:00:11]} Bb5 {[%emt 0:00:14]} 18. Ne5 {[%emt 0:03:12]} Nd5 {[%emt 0:03:41]} 19. Nbc4 {[%emt 0:05:40]} Nc6 {[%emt 0:05:49]} 20. Nxc6 {[%emt 0:21:26]} Bxc4 {[%emt 0:01:05]} 21. Rxa5 {[%emt 0:04:57]} Rxa5 {[%emt 0:02:25]} 22. Nxa5 {[%emt 0:00:09]} Bxe2 {[%emt 0:00:06]} 23. Re1 {[%emt 0:00:44]} Bb5 {[%emt 0:00:19]} 24. Bxd5 {[%emt 0:03:26]} exd5 {[%emt 0:00:03]} 25. Re5 {[%emt 0:00:52]} Rd8 {[%emt 0:05:25]} 26. Nb7 {[%emt 0:01:00]} Ra8 {[%emt 0:00:40]} 27. Nd6 {[%emt 0:02:47]} Bd7 {[%emt 0:00:30]} 28. Re7 {[%emt 0:04:38]} Be6 {[%emt 0:06:52]} 29. Re8+ {[%emt 0:00:54]} Rxe8 {[%emt 0:00:04]} 30. Nxe8 {[%emt 0:00:09]} Kf8 {[%emt 0:00:30]} 31. Nc7 {[%emt 0:00:28]} g5 {[%emt 0:02:30]} 32. f3 {[%emt 0:00:48]} Ke7 {[%emt 0:02:24]} 33. Kf2 {[%emt 0:00:17]} f6 {[%emt 0:01:20]} 34. Ke3 {[%emt 0:01:24]} Bf7 {[%emt 0:00:21]} 35. Na6 {[%emt 0:03:34]} Kd6 {[%emt 0:01:11]} 36. Nc5 {[%emt 0:01:01]} Bg6 {[%emt 0:00:14]} 37. f4 {[%emt 0:02:29]} h6 {[%emt 0:05:07]} 38. Kf3 {[%emt 0:01:49]} Bh5+ {[%emt 0:02:06]} 39. Ke3 {[%emt 0:01:22]} Bg6 {[%emt 0:00:59]} 40. Kf3 {[%emt 0:00:25]} Bh5+ {[%emt 0:00:08]} 41. Ke3 {[%emt 0:50:07]} 1/2-1/2

[Event "FIDE Womens Grand Swiss 2023"]
[Site "Douglas/Isle of Man"]
[Date "2023.10.25"]
[Round "1.4"]
[White "Tan, Zhongyi"]
[Black "Fataliyeva, Ulviyya"]
[Result "1-0"]
[ECO "E05"]
[WhiteElo "2517"]
[BlackElo "2393"]
[Annotator "RC"]
[PlyCount "89"]
[EventDate "2023.10.04"]
[EventType "swiss"]
[EventCountry "GBR"]
[SourceTitle "playchess.com"]
[Source "ChessBase"]
[SourceQuality "1"]
[TimeControl "40/6000+30:20/3000+30:900+30"]

1. d4 {[%emt 0:10:09]} Nf6 {[%emt 0:10:04]} 2. c4 {[%emt 0:00:13]} e6 {[%emt 0:00:05]} 3. Nf3 {[%emt 0:00:15]} d5 {[%emt 0:00:06]} 4. g3 {[%emt 0:00:12]} Be7 {[%emt 0:00:17]} 5. Bg2 {[%emt 0:00:10]} O-O {[%emt 0:00:18]} 6. O-O {[%emt 0:02:41]} dxc4 {[%emt 0:00:05]} 7. Qa4 {[%emt 0:00:06]} a6 {[%emt 0:00:07]} 8. Qxc4 {[%emt 0:00:05]} b5 {[%emt 0:00:08]} 9. Qc2 {[%emt 0:00:05]} Bb7 {[%emt 0:00:08]} 10. Bd2 {[%emt 0:00:08]} Be4 {[%emt 0:04:53]} 11. Qc1 {[%emt 0:00:09]} Ra7 {[%emt 0:07:32]} 12. a4 {[%emt 0:07:55]} b4 {[%emt 0:05:23]} 13. Bg5 {[%emt 0:00:36]} c5 {[%emt 0:18:29]} 14. Nbd2 {[%emt 0:19:44]} Bxf3 {[%emt 0:02:09]} 15. Nxf3 {[%emt 0:00:06]} cxd4 {[%emt 0:02:00]} 16. Qc4 {[%emt 0:00:09]} Nd5 {[%emt 0:30:13]} 17. Bxe7 {[%emt 0:01:51]} Qxe7 {[%emt 0:00:06]} 18. Nxd4 {[%emt 0:00:21]} Rc7 {[%emt 0:00:11]} 19. Qb3 {[%emt 0:00:25]} Rfc8 {[%emt 0:04:22]} 20. Bxd5 {[%emt 0:03:23]} exd5 {[%emt 0:00:03]} 21. Rad1 {[%emt 0:00:11]} Rd8 {[%emt 0:13:31]} 22. Rd2 {[%emt 0:07:08]} a5 {[%emt 0:02:18]} 23. Rfd1 {[%emt 0:00:11]} g6 {[%emt 0:02:47]} 24. Rc2 {[%emt 0:04:11]} Rc5 {[%emt 0:00:56]} 25. Qd3 {[%emt 0:02:05]} Nd7 {[%emt 0:02:59]} 26. Rxc5 {[%emt 0:01:08]} Nxc5 {[%emt 0:00:45]} 27. Qb5 {[%emt 0:00:06]} Rd7 {[%emt 0:03:30]} 28. Qxa5 {[%emt 0:04:32]} Ne4 {[%emt 0:00:01]} 29. Qb6 {[%emt 0:00:34]} Rd6 {[%emt 0:00:57]} 30. Qb8+ {[%emt 0:01:01]} Kg7 {[%emt 0:00:12]} 31. Qxb4 {[%emt 0:01:32]} Nxf2 {[%emt 0:00:44]} 32. Nf5+ {[%emt 0:00:38]} gxf5 {[%emt 0:00:03]} 33. Qd4+ {[%emt 0:00:08]} Qf6 {[%emt 0:01:00]} 34. Kxf2 {[%emt 0:00:11]} Rb6 {[%emt 0:00:36]} 35. b4 {[%emt 0:00:19]} Qxd4+ {[%emt 0:00:11]} 36. Rxd4 {[%emt 0:00:06]} Kf6 {[%emt 0:00:03]} 37. b5 {[%emt 0:00:22]} Ke5 {[%emt 0:00:06]} 38. Rh4 {[%emt 0:00:59]} Rb7 {[%emt 0:01:31]} 39. Ke3 {[%emt 0:03:39]} f6 {[%emt 0:00:35]} 40. Kd3 {[%emt 0:00:23]} Kd6 {[%emt 0:00:20]} 41. Rf4 {[%emt 0:50:23]} Ke5 {[%emt 0:50:37]} 42. Rb4 {[%emt 0:00:40]} Kd6 {[%emt 0:00:22]} 43. b6 {[%emt 0:00:34]} Kc5 {[%emt 0:00:00]} 44. Rb5+ {[%emt 0:00:00]} Kc6 {[%emt 0:00:00]} 45. Kd4 {[%emt 0:00:00]} 1-0

[Event "FIDE Womens Grand Swiss 2023"]
[Site "Douglas/Isle of Man"]
[Date "2023.10.25"]
[Round "1.5"]
[White "Milliet, Sophie"]
[Black "Muzychuk, Anna"]
[Result "0-1"]
[ECO "C54"]
[WhiteElo "2391"]
[BlackElo "2510"]
[Annotator "RC"]
[PlyCount "144"]
[EventDate "2023.10.04"]
[EventType "swiss"]
[EventCountry "GBR"]
[SourceTitle "playchess.com"]
[Source "ChessBase"]
[SourceQuality "1"]
[TimeControl "40/6000+30:20/3000+30:900+30"]

1. e4 {[%emt 0:10:04]} e5 {[%emt 0:10:05]} 2. Nf3 {[%emt 0:00:04]} Nc6 {[%emt 0:00:08]} 3. Bc4 {[%emt 0:00:05]} Bc5 {[%emt 0:00:19]} 4. d3 {[%emt 0:00:50]} Nf6 {[%emt 0:00:20]} 5. c3 {[%emt 0:00:47]} d6 {[%emt 0:00:38]} 6. O-O {[%emt 0:00:21]} a6 {[%emt 0:01:25]} 7. a4 {[%emt 0:00:11]} h6 {[%emt 0:00:34]} 8. Re1 {[%emt 0:01:30]} O-O {[%emt 0:01:09]} 9. Nbd2 {[%emt 0:01:04]} a5 {[%emt 0:06:04]} 10. Nf1 {[%emt 0:11:19]} Be6 {[%emt 0:00:30]} 11. Bb5 {[%emt 0:01:06]} Na7 {[%emt 0:01:07]} 12. d4 {[%emt 0:04:40]} Nxb5 {[%emt 0:08:55]} 13. dxc5 {[%emt 0:03:04]} Na7 {[%emt 0:04:07]} 14. cxd6 {[%emt 0:10:54]} Qxd6 {[%emt 0:02:06]} 15. Qxd6 {[%emt 0:04:11]} cxd6 {[%emt 0:00:01]} 16. Be3 {[%emt 0:01:10]} Nc6 {[%emt 0:01:09]} 17. Ng3 {[%emt 0:05:00]} Rfd8 {[%emt 0:02:58]} 18. h3 {[%emt 0:16:00]} d5 {[%emt 0:13:49]} 19. exd5 {[%emt 0:01:49]} Nxd5 {[%emt 0:01:22]} 20. Bc5 {[%emt 0:02:08]} f6 {[%emt 0:07:35]} 21. Rad1 {[%emt 0:06:04]} b6 {[%emt 0:06:12]} 22. Be3 {[%emt 0:14:57]} Nxe3 {[%emt 0:07:17]} 23. fxe3 {[%emt 0:00:34]} Bb3 {[%emt 0:02:37]} 24. Rxd8+ {[%emt 0:00:18]} Rxd8 {[%emt 0:00:05]} 25. Ra1 {[%emt 0:00:27]} Rd1+ {[%emt 0:04:24]} 26. Rxd1 {[%emt 0:00:04]} Bxd1 {[%emt 0:00:03]} 27. Nd2 {[%emt 0:09:09]} Bxa4 {[%emt 0:00:38]} 28. Nf5 {[%emt 0:03:07]} Bc2 {[%emt 0:06:20]} 29. Nd6 {[%emt 0:00:11]} Bd3 {[%emt 0:01:57]} 30. e4 {[%emt 0:00:38]} Ba6 {[%emt 0:02:16]} 31. Kf2 {[%emt 0:01:36]} Kf8 {[%emt 0:03:24]} 32. Nf5 {[%emt 0:00:47]} Ne7 {[%emt 0:04:39]} 33. Ne3 {[%emt 0:00:17]} Ke8 {[%emt 0:00:54]} 34. h4 {[%emt 0:01:28]} h5 {[%emt 0:02:13]} 35. Kf3 {[%emt 0:00:47]} Kd7 {[%emt 0:00:52]} 36. Ndc4 {[%emt 0:01:16]} Kc6 {[%emt 0:00:56]} 37. g4 {[%emt 0:00:28]} hxg4+ {[%emt 0:03:35]} 38. Kxg4 {[%emt 0:00:01]} a4 {[%emt 0:03:11]} 39. h5 {[%emt 0:00:32]} Kc5 {[%emt 0:01:14]} 40. Nd2 {[%emt 0:00:09]} Be2+ {[%emt 0:00:44]} 41. Kh4 {[%emt 0:50:07]} b5 {[%emt 0:27:58]} 42. Nc2 {[%emt 0:00:00]} Nc8 {[%emt 0:07:56]} 43. Nb4 {[%emt 0:00:00]} Nb6 {[%emt 0:01:49]} 44. Na6+ {[%emt 0:00:00]} Kd6 {[%emt 0:00:02]} 45. Nb4 {[%emt 0:00:00]} Ke6 {[%emt 0:07:17]} 46. Nc2 {[%emt 0:00:00]} Nc8 {[%emt 0:00:17]} 47. Nb4 {[%emt 0:00:00]} Ne7 {[%emt 0:03:12]} 48. Nc2 {[%emt 0:00:00]} Nc8 {[%emt 0:00:38]} 49. Nb4 {[%emt 0:00:00]} Nd6 {[%emt 0:00:55]} 50. Na6 {[%emt 0:00:00]} Nb7 {[%emt 0:02:40]} 51. Nc7+ {[%emt 0:00:00]} Kf7 {[%emt 0:01:49]} 52. Na6 {[%emt 0:00:00]} Nd6 {[%emt 0:00:45]} 53. Nb4 {[%emt 0:01:01]} Bd1 {[%emt 0:01:03]} 54. Nd3 {[%emt 0:00:00]} Bc2 {[%emt 0:01:48]} 55. Nc5 {[%emt 0:00:00]} Ke7 {[%emt 0:00:24]} 56. Kg4 {[%emt 0:00:00]} Bd1+ {[%emt 0:00:15]} 57. Kh4 {[%emt 0:00:00]} Be2 {[%emt 0:00:23]} 58. Na6 {[%emt 0:00:00]} Nb7 {[%emt 0:01:01]} 59. Nb4 {[%emt 0:08:14]} Nc5 {[%emt 0:00:10]} 60. Nd5+ {[%emt 0:00:08]} Kf7 {[%emt 0:00:14]} 61. Nc7 {[%emt 0:15:33]} Nd3 {[%emt 0:16:20]} 62. Nxb5 {[%emt 0:00:11]} Nxb2 {[%emt 0:00:05]} 63. Na3 {[%emt 0:00:20]} Ke6 {[%emt 0:00:37]} 64. Ndb1 {[%emt 0:02:07]} Kd6 {[%emt 0:00:39]} 65. Nd2 {[%emt 0:00:10]} Kc5 {[%emt 0:00:12]} 66. Ndb1 {[%emt 0:00:41]} Nc4 {[%emt 0:00:16]} 67. Nc2 {[%emt 0:00:49]} Bd3 {[%emt 0:00:15]} 68. Nba3 {[%emt 0:00:24]} Bxe4 {[%emt 0:00:16]} 69. h6 {[%emt 0:00:23]} gxh6 {[%emt 0:00:11]} 70. Kh5 {[%emt 0:00:03]} Bd3 {[%emt 0:00:35]} 71. Kxh6 {[%emt 0:00:09]} Nxa3 {[%emt 0:00:34]} 72. Nxa3 {[%emt 0:00:01]} e4 {[%emt 0:00:13]} 0-1

[Event "FIDE Womens Grand Swiss 2023"]
[Site "Douglas/Isle of Man"]
[Date "2023.10.25"]
[Round "1.6"]
[White "Shuvalova, Polina"]
[Black "Roebers, Eline"]
[Result "0-1"]
[ECO "C17"]
[WhiteElo "2506"]
[BlackElo "2390"]
[Annotator "RC"]
[PlyCount "144"]
[EventDate "2023.10.04"]
[EventType "swiss"]
[EventCountry "GBR"]
[SourceTitle "playchess.com"]
[Source "ChessBase"]
[SourceQuality "1"]
[TimeControl "40/6000+30:20/3000+30:900+30"]

1. e4 {[%emt 0:10:04]} e6 {[%emt 0:10:27]} 2. d4 {[%emt 0:00:07]} d5 {[%emt 0:00:04]} 3. Nc3 {[%emt 0:01:26]} Bb4 {[%emt 0:00:41]} 4. e5 {[%emt 0:00:35]} c5 {[%emt 0:00:22]} 5. Bd2 {[%emt 0:00:44]} Ne7 {[%emt 0:01:47]} 6. a3 {[%emt 0:02:18]} Bxc3 {[%emt 0:00:13]} 7. Bxc3 {[%emt 0:00:08]} b6 {[%emt 0:04:28]} 8. Nf3 {[%emt 0:02:56]} Ba6 {[%emt 0:07:03]} 9. Bxa6 {[%emt 0:01:03]} Nxa6 {[%emt 0:00:05]} 10. h4 {[%emt 0:00:12]} Rc8 {[%emt 0:06:47]} 11. h5 {[%emt 0:00:16]} h6 {[%emt 0:00:04]} 12. Qe2 {[%emt 0:04:56]} Nb8 {[%emt 0:04:11]} 13. Rh3 {[%emt 0:05:15]} Qc7 {[%emt 0:07:20]} 14. g4 {[%emt 0:03:40]} Nbc6 {[%emt 0:02:46]} 15. Rg3 {[%emt 0:07:00]} Kd7 {[%emt 0:10:20]} 16. dxc5 {[%emt 0:13:31]} bxc5 {[%emt 0:00:06]} 17. Kf1 {[%emt 0:02:12]} g6 {[%emt 0:13:40]} 18. hxg6 {[%emt 0:10:20]} fxg6 {[%emt 0:05:58]} 19. b4 {[%emt 0:06:37]} Rcf8 {[%emt 0:06:46]} 20. b5 {[%emt 0:05:04]} Na5 {[%emt 0:03:18]} 21. Rd1 {[%emt 0:05:36]} Kc8 {[%emt 0:04:17]} 22. Nd2 {[%emt 0:04:50]} Rf4 {[%emt 0:07:47]} 23. Bxa5 {[%emt 0:12:10]} Qxa5 {[%emt 0:00:06]} 24. Qe3 {[%emt 0:00:03]} Rhf8 {[%emt 0:09:10]} 25. Qxc5+ {[%emt 0:00:07]} Qc7 {[%emt 0:00:01]} 26. Qxc7+ {[%emt 0:02:12]} Kxc7 {[%emt 0:00:01]} 27. f3 {[%emt 0:00:59]} Kb6 {[%emt 0:01:49]} 28. Ke2 {[%emt 0:02:45]} Kxb5 {[%emt 0:01:07]} 29. Rb1+ {[%emt 0:02:18]} Ka4 {[%emt 0:01:02]} 30. Rb7 {[%emt 0:02:00]} Nc6 {[%emt 0:00:18]} 31. Rc7 {[%emt 0:00:57]} Kb5 {[%emt 0:01:14]} 32. c3 {[%emt 0:01:59]} Ra4 {[%emt 0:01:39]} 33. Rg1 {[%emt 0:01:03]} Kb6 {[%emt 0:01:00]} 34. Rd7 {[%emt 0:00:25]} Nxe5 {[%emt 0:00:42]} 35. Rd6+ {[%emt 0:00:18]} Nc6 {[%emt 0:00:39]} 36. Rxe6 {[%emt 0:01:11]} g5 {[%emt 0:00:36]} 37. Rb1+ {[%emt 0:00:55]} Kc7 {[%emt 0:00:09]} 38. Rb3 {[%emt 0:00:33]} Rh8 {[%emt 0:00:48]} 39. Rg6 {[%emt 0:00:37]} Ne5 {[%emt 0:00:35]} 40. Rg7+ {[%emt 0:00:14]} Kd6 {[%emt 0:00:18]} 41. Kf2 {[%emt 0:29:51]} h5 {[%emt 0:26:12]} 42. gxh5 {[%emt 0:03:55]} Rxh5 {[%emt 0:00:05]} 43. Kg2 {[%emt 0:00:57]} g4 {[%emt 0:01:23]} 44. fxg4 {[%emt 0:01:16]} Nxg4 {[%emt 0:00:27]} 45. Rg6+ {[%emt 0:04:06]} Kc7 {[%emt 0:01:50]} 46. Rg7+ {[%emt 0:00:44]} Kd6 {[%emt 0:00:05]} 47. Rg6+ {[%emt 0:00:05]} Kc7 {[%emt 0:00:06]} 48. Nf3 {[%emt 0:03:02]} Ne3+ {[%emt 0:05:23]} 49. Kf2 {[%emt 0:00:04]} Nc2 {[%emt 0:01:26]} 50. Rb2 {[%emt 0:08:03]} Nxa3 {[%emt 0:00:24]} 51. Ra2 {[%emt 0:01:08]} Ra5 {[%emt 0:00:47]} 52. Kg3 {[%emt 0:00:39]} Nc4 {[%emt 0:01:01]} 53. Re2 {[%emt 0:00:49]} Rh7 {[%emt 0:00:19]} 54. Ng5 {[%emt 0:00:33]} Rd7 {[%emt 0:00:33]} 55. Ne6+ {[%emt 0:01:05]} Kb7 {[%emt 0:00:05]} 56. Re1 {[%emt 0:00:34]} Rb5 {[%emt 0:00:43]} 57. Nd4 {[%emt 0:00:49]} Rb2 {[%emt 0:00:54]} 58. Ne6 {[%emt 0:00:13]} Rb5 {[%emt 0:03:21]} 59. Nd4 {[%emt 0:00:05]} Rb6 {[%emt 0:00:40]} 60. Ne6 {[%emt 0:00:14]} Rc6 {[%emt 0:01:29]} 61. Rb1+ {[%emt 0:17:25]} Nb6 {[%emt 0:15:10]} 62. Rb3 {[%emt 0:00:07]} Rc4 {[%emt 0:01:15]} 63. Kf2 {[%emt 0:00:28]} Re7 {[%emt 0:01:51]} 64. Nd4 {[%emt 0:00:27]} Rc8 {[%emt 0:03:23]} 65. Nb5 {[%emt 0:00:14]} Rc6 {[%emt 0:01:01]} 66. Nd6+ {[%emt 0:00:34]} Kb8 {[%emt 0:00:59]} 67. Ra3 {[%emt 0:01:22]} Re8 {[%emt 0:02:53]} 68. Rg7 {[%emt 0:00:34]} Rxd6 {[%emt 0:00:12]} 69. Raxa7 {[%emt 0:00:04]} Rf6+ {[%emt 0:00:11]} 70. Kg2 {[%emt 0:00:05]} Rg6+ {[%emt 0:00:07]} 71. Kf3 {[%emt 0:00:09]} Rxg7 {[%emt 0:00:05]} 72. Rxg7 {[%emt 0:00:03]} Rc8 {[%emt 0:00:18]} 0-1